bitfinex/quotes_SOLUSD_20260217
["timestamp","ask_amount","ask_price","bid_price","bid_amount"]
[1771294560574,0.47413584,87.159,87.132,11.47683973]
[1771294560799,0.47413584,87.159,87.132,11.96500275]
[1771294560977,0.47413584,87.169,87.133,0.48816302]
[1771294561954,0.47413584,87.159,87.123,19.52]
[1771294562142,0.47413584,87.157,87.123,19.52]
[1771294562750,8.05495854,87.15,87.122,0.48816302]
[1771294563146,11.47367937,87.156,87.124,11.47789357]
[1771294563353,0.47413584,87.155,87.124,11.47789357]
[1771294564883,0.47413584,87.155,87.122,0.48816302]
[1771294565087,0.47413584,87.149,87.122,0.48816302]
[1771294565257,0.47413584,87.149,87.123,11.47802532]
[1771294566567,0.47413584,87.129,87.09,0.48816302]
[1771294566760,0.47413584,87.119,87.09,0.48816302]
[1771294566962,0.47413584,87.129,87.091,0.48816302]
[1771294567384,0.47413584,87.129,87.093,0.48816302]
[1771294568468,0.47413584,87.129,87.094,0.48816302]
[1771294568776,11.47614857,87.138,87.101,0.48816302]
[1771294568986,11.47614857,87.138,87.072,11.48474825]
[1771294568987,0.47413584,87.109,87.072,11.48474825]
[1771294569183,0.47413584,87.109,87.072,40.19661888]
[1771294569371,0.47413584,87.109,87.074,0.48816302]
[1771294569880,0.47413584,87.089,87.051,0.48816302]
[1771294570181,0.47413584,87.101,87.07,8.05495854]
[1771294570367,0.47413584,87.101,87.071,0.48816302]
[1771294570775,0.47413584,87.101,87.072,11.48474825]
[1771294571067,8.52909438,87.09,87.065,19.52]
[1771294571469,0.47413584,87.089,87.066,11.4855397]
[1771294571969,0.47413584,87.089,87.061,0.48816302]
[1771294572679,0.47413584,87.089,87.062,11.4860674]
[1771294573385,0.47413584,87.069,87.037,11.48936659]
[1771294573566,0.47413584,87.069,87.038,20.00816302]
[1771294573762,0.47413584,87.069,87.039,0.48816302]
[1771294574784,0.47413584,87.069,87.006,0.14216157]
[1771294574785,0.48602746,87.059,87.027,11.49068679]
[1771294575489,0.48602746,87.057,87.027,11.49068679]
[1771294575689,0.48602746,87.057,87.023,19.52]
[1771294575690,0.48602746,87.039,87.023,19.52]
[1771294576067,0.48602746,87.058,87.021,0.48093746]
[1771294576388,5.36086188,87.112,87.021,0.48093746]
[1771294576389,0.48602746,87.079,87.041,0.48093746]
[1771294576770,0.48602746,87.049,87.025,11.49087735]
[1771294576977,0.48602746,87.049,87.02,11.69157358]
[1771294577878,0.48602746,87.049,87.02,31.21157358]
[1771294578668,0.48602746,87.039,87.02,0.2]
[1771294579591,0.48602746,87.029,86.996,0.48093746]
[1771294579791,0.48602746,87.029,86.99,8.05495854]
[1771294579792,8.05495854,87.03,87.002,0.48093746]
[1771294579973,0.48602746,87.039,87.002,0.48093746]
[1771294580478,8.05495854,87.05,87.011,0.48093746]
[1771294580682,8.05495854,87.06,87.021,0.48093746]
[1771294581192,8.05495854,87.05,87.023,0.48093746]
[1771294581581,0.48602746,87.06,87.023,0.48093746]
[1771294581582,8.05495854,87.06,87.023,0.48093746]
[1771294582174,0.48602746,87.059,87.024,19.52]
[1771294582384,11.97249066,87.059,87.024,19.52]
[1771294582587,11.97249066,87.059,87.025,19.52]
[1771294582788,0.48602746,87.049,87.025,19.52]
[1771294583172,8.05495854,87.04,87.022,11.49134701]
[1771294583375,8.05495854,87.04,87.015,11.49222606]
[1771294583575,8.05495854,87.05,87.016,0.48093746]
[1771294583877,8.05495854,87.07,87.031,0.48093746]
[1771294584283,8.05495854,87.07,87.033,0.48093746]
[1771294584484,8.05495854,87.08,87.041,0.48093746]
[1771294584783,11.48316567,87.084,87.041,0.48093746]
[1771294584784,8.05495854,87.07,87.041,0.48093746]
[1771294585989,0.48602746,87.078,87.043,0.48093746]
[1771294586599,8.05495854,87.07,87.043,0.48093746]
[1771294587391,0.48602746,87.078,87.043,0.48093746]
[1771294588500,0.48602746,87.078,87.044,11.48844262]
[1771294588699,0.48602746,87.078,87.045,0.48093746]
[1771294590092,11.48281956,87.087,87.051,0.48093746]
[1771294590405,8.05495854,87.08,87.051,0.48093746]
[1771294590703,8.05495854,87.08,87.044,40.20954918]
[1771294590704,8.05495854,87.08,87.053,0.48093746]
[1771294591510,11.48382503,87.079,87.053,0.48093746]
[1771294591686,8.05495854,87.08,87.053,0.48093746]
[1771294591886,19.5387078,87.08,87.053,0.48093746]
[1771294592409,0.48602746,87.069,87.039,0.48093746]
[1771294593609,0.48602746,87.067,87.036,0.48093746]
[1771294593795,11.48514396,87.069,87.036,0.48093746]
[1771294594597,8.05495854,87.06,87.036,0.48093746]
[1771294594803,0.48602746,87.049,87.02,11.49149936]
[1771294595196,0.48602746,87.049,87.02,11.49161112]
[1771294595605,11.48791471,87.048,87.019,19.5]
[1771294595808,8.05495854,87.04,87.019,19.5]
[1771294596106,0.48602746,87.047,87.019,30.991731]
[1771294596508,8.05495854,87.04,87.019,11.491731]
[1771294596815,8.05495854,87.04,87.015,11.49224402]
[1771294597209,0.48602746,87.047,87.016,0.48093746]
[1771294597407,11.48791471,87.048,87.014,19.5]
[1771294597408,0.48602746,87.039,87.014,19.5]
[1771294597793,8.05495854,87.03,87.014,19.5]
[1771294598091,8.05495854,87.02,86.989,29.22000963]
[1771294598294,0.48602746,87.072,87.011,0.48093746]
[1771294598600,0.48602746,87.049,87.021,0.48093746]
[1771294599004,0.48602746,87.039,87.01,0.48093746]
[1771294599314,0.48602746,87.039,87.01,19.98093746]
[1771294599890,11.48923458,87.038,87.011,11.49279976]
[1771294600103,0.48602746,87.039,87.011,11.49279976]
[1771294601017,0.48602746,87.048,87.012,0.48093746]
[1771294601221,0.48602746,87.057,87.021,0.48093746]
[1771294601397,0.48602746,87.068,87.031,0.48093746]
[1771294601595,0.48602746,87.068,87.022,19.52]
[1771294601596,0.48602746,87.059,87.023,0.48093746]
[1771294602114,0.48602746,87.057,87.024,11.97202037]
[1771294602818,0.48602746,87.049,87.023,19.52]
[1771294603010,0.48602746,87.049,87.023,31.01114691]
[1771294604418,0.45548709,87.058,87.023,31.01114691]
[1771294605497,19.56721522,87.06,87.023,31.01114691]
[1771294605498,0.45548709,87.056,87.023,31.01114691]
[1771294605796,8.08076628,87.07,87.031,0.45779788]
[1771294606010,0.45548709,87.076,87.023,59.73918432]
[1771294606011,8.08076628,87.08,87.041,0.45779788]
[1771294606316,8.08076628,87.09,87.053,0.45779788]
[1771294606517,8.08076628,87.09,87.052,11.48738684]
[1771294606518,0.45548709,87.094,87.061,0.45779788]
[1771294606997,8.08076628,87.08,87.052,11.48738684]
[1771294607197,8.08076628,87.08,87.053,19.52]
[1771294607512,8.53625337,87.09,87.054,0.45779788]
[1771294608618,8.53625337,87.09,87.053,19.52]
[1771294608619,8.53625337,87.09,87.056,0.45779788]
[1771294608910,20.01863679,87.09,87.056,0.45779788]
[1771294609118,0.45697541,87.079,87.053,19.52]
[1771294609299,8.08076628,87.08,87.054,11.48712293]
[1771294609495,0.45697541,87.088,87.054,11.48712293]
[1771294609815,8.08076628,87.08,87.054,11.48712293]
[1771294610014,8.53774169,87.08,87.054,11.48712293]
[1771294610824,0.45697541,87.079,87.052,0.46404625]
[1771294611112,0.45697541,87.079,87.053,11.48725489]
[1771294611515,0.45697541,87.069,87.032,28.7249774]
[1771294611816,8.53774169,87.06,87.031,19.52]
[1771294612521,0.45697541,87.059,87.031,19.52]
[1771294613222,0.45697541,87.057,87.031,19.52]
[1771294613815,0.45697541,87.057,87.032,11.49002665]
[1771294614820,0.45697541,87.057,87.027,31.0106357]
[1771294615014,0.45697541,87.049,87.027,19.52]
[1771294615206,8.08076628,87.06,87.028,0.46404625]
[1771294616521,8.08076628,87.06,87.028,11.49055476]
[1771294616723,8.08076628,87.06,87.029,0.46404625]
[1771294616922,0.45697541,87.063,87.031,0.46404625]
[1771294618031,0.45697541,87.063,87.027,19.52]
[1771294618032,11.48329754,87.083,87.033,0.46404625]
[1771294618208,8.08076628,87.08,87.041,0.46404625]
[1771294619118,0.45697541,87.079,87.041,0.46404625]
[1771294620106,11.48395691,87.078,87.043,0.46404625]
[1771294620308,0.45697541,87.069,87.042,11.4887066]
[1771294620509,0.45697541,87.069,87.034,0.46404625]
[1771294620510,0.45697541,87.069,87.037,11.48927917]
[1771294621125,0.45697541,87.059,87.028,11.49055476]
[1771294621510,0.45697541,87.059,87.029,0.46404625]
[1771294622527,8.53774169,87.08,87.041,0.46404625]
[1771294622726,0.45697541,87.08,87.043,0.46404625]
[1771294622929,0.45697541,87.089,87.051,0.46404625]
[1771294623118,11.48265073,87.088,87.051,0.46404625]
[1771294623436,0.45697541,87.089,87.053,0.46404625]
[1771294624633,0.45697541,87.089,87.055,0.46404625]
[1771294625244,8.08076628,87.09,87.054,11.48712293]
[1771294625245,0.45697541,87.098,87.061,0.46404625]
[1771294626234,0.45697541,87.089,87.056,19.54]
[1771294626415,0.45697541,87.089,87.057,0.46404625]
[1771294626615,0.45697541,87.079,87.056,19.54]
[1771294627033,8.08076628,87.1,87.061,0.46404625]
[1771294627233,0.45697541,87.109,87.071,0.46404625]
[1771294627626,0.45697541,87.109,87.073,0.46404625]
[1771294628353,0.45697541,87.109,87.081,0.46404625]
[1771294628526,0.45697541,87.109,87.082,19.52]
[1771294628925,0.45697541,87.109,87.083,11.48329754]
[1771294630138,8.08076628,87.12,87.086,0.46404625]
[1771294630342,0.45697541,87.119,87.086,0.46404625]
[1771294630544,8.08076628,87.11,87.086,0.46404625]
[1771294630924,0.45697541,87.119,87.086,0.46404625]
[1771294631742,0.45697541,87.109,87.084,19.52]
[1771294632037,8.08076628,87.11,87.076,11.48419895]
[1771294632038,0.45697541,87.101,87.076,11.48419895]
[1771294632236,0.45697541,87.101,87.077,0.46404625]
[1771294632933,0.45697541,87.099,87.071,11.48476835]
[1771294633123,0.45697541,87.099,87.075,19.52]
[1771294633641,0.45697541,87.099,87.059,28.71603109]
[1771294633642,0.45697541,87.089,87.028,0.46404625]
[1771294633842,8.08076628,87.08,87.041,0.46404625]
[1771294634147,11.48131989,87.098,87.061,0.46404625]
[1771294634436,0.45697541,87.1,87.071,0.49938142]
[1771294634620,11.48118807,87.099,87.071,0.49938142]
[1771294636128,0.49133496,87.089,87.063,0.49938142]
[1771294636343,0.49133496,87.089,87.05,8.08076628]
[1771294636344,0.49133496,87.089,87.052,11.9866566]
[1771294636528,0.49133496,87.089,87.053,0.49938142]
[1771294637945,0.49133496,87.089,87.054,11.48712293]
[1771294638149,0.49133496,87.089,87.055,0.49938142]
[1771294638353,0.49133496,87.123,87.081,0.49938142]
[1771294638646,0.49133496,87.123,87.091,0.49938142]
[1771294639632,11.47815706,87.122,87.091,0.49938142]
[1771294639837,8.08076628,87.12,87.091,0.49938142]
[1771294640348,0.49133496,87.119,87.081,19.5]
[1771294640548,11.47746226,87.128,87.091,0.49938142]
[1771294640751,11.47677365,87.133,87.101,0.49938142]
[1771294640931,8.08076628,87.13,87.101,0.49938142]
[1771294642253,11.4772349,87.129,87.101,0.49938142]
[1771294642626,8.57210124,87.13,87.101,0.49938142]
[1771294642826,20.04929861,87.13,87.101,0.49938142]
[1771294644047,15.19398386,87.13,87.101,0.49938142]
[1771294644551,0.49133496,87.129,87.087,0.49938142]
[1771294644727,14.7026489,87.13,87.051,0.49938142]
[1771294644728,0.49133496,87.099,87.051,0.49938142]
[1771294644932,0.49133496,87.099,87.05,3.22545153]
[1771294644933,3.22545153,87.09,87.054,0.49938142]
[1771294645553,0.49133496,87.099,87.054,0.49938142]
[1771294645936,3.22545153,87.1,87.061,0.49938142]
[1771294646338,0.49133496,87.069,87.034,0.49938142]
[1771294646538,3.22545153,87.04,87.001,0.49938142]
[1771294646738,3.22545153,87.04,87.003,0.49938142]
[1771294646937,3.71678649,87.05,87.011,0.49938142]
[1771294647960,8.57096835,87.05,87.011,0.49938142]
[1771294648662,8.57096835,87.05,87.013,0.49938142]
[1771294648848,8.07963339,87.04,87.013,0.49938142]
[1771294649540,8.07963339,87.06,87.021,0.49938142]
[1771294649740,0.49133496,87.049,87.013,0.49938142]
[1771294649940,8.07963339,87.04,87.013,0.49938142]
[1771294650147,0.49133496,87.049,87.013,0.49938142]
[1771294650538,8.07963339,87.04,87.013,0.49938142]
[1771294650837,0.49133496,87.049,87.015,0.49938142]
[1771294651655,0.49133496,87.049,87.002,19.48]
[1771294651656,0.49133496,87.029,86.991,0.49938142]
[1771294651950,0.49133496,87.029,86.993,0.49938142]
[1771294652155,8.07963339,87.03,86.995,0.49938142]
[1771294652650,8.07963339,87.02,86.995,0.49938142]
[1771294652856,8.07963339,87.02,86.996,11.49478136]
[1771294653055,8.07963339,87.02,86.997,0.49938142]
[1771294653263,0.49133496,87.038,86.997,0.49938142]
[1771294653470,8.07963339,87.03,86.997,0.49938142]
[1771294653672,0.49133496,87.029,86.997,0.49938142]
[1771294654756,0.49133496,87.029,86.998,11.99389853]
[1771294655161,0.49133496,87.029,86.999,0.49938142]
[1771294655375,8.07963339,87.02,86.999,0.49938142]
[1771294656364,0.49133496,87.063,87.011,0.49938142]
[1771294656543,8.07963339,87.06,87.021,0.49938142]
[1771294656749,8.07963339,87.07,87.031,0.49938142]
[1771294657254,8.07963339,87.06,87.031,0.49938142]
[1771294657661,0.49133496,87.059,87.031,0.49938142]
[1771294659666,8.07963339,87.05,87.022,31.49062251]
[1771294659882,0.49133496,87.049,87.022,30.99127949]
[1771294662177,0.49133496,87.049,87.022,31.49066091]
[1771294662392,11.48791471,87.048,87.022,19.99938142]
[1771294662688,15.92,87.078,87.022,19.99938142]
[1771294662689,0.49133496,87.089,87.041,0.49938142]
[1771294662988,0.49133496,87.089,87.051,0.49938142]
[1771294663152,8.07966401,87.08,87.052,0.49938142]
[1771294663776,0.49133496,87.059,87.023,11.49121496]
[1771294663978,8.07966401,87.05,87.023,11.49121496]
[1771294664157,8.07966401,87.04,87.021,19.5]
[1771294664365,8.07966401,87.05,87.023,0.49437699]
[1771294664882,11.97090062,87.049,87.017,11.49191816]
[1771294665374,0.48311788,87.049,87.017,11.49191816]
[1771294665676,8.07966401,87.03,87.013,19.5]
[1771294666480,0.48311788,87.039,87.013,19.5]
[1771294667557,8.07966401,87.03,87.013,19.5]
[1771294667762,0.48311788,87.029,87.004,11.49362064]
[1771294668178,8.07966401,87.02,86.999,30.9943707]
[1771294668377,8.07966401,87.02,86.999,19.5]
[1771294668552,0.48311788,87.029,86.999,19.5]
[1771294668755,8.07966401,87.02,86.999,19.5]
[1771294668969,11.49055476,87.028,86.999,19.5]
[1771294669784,0.48311788,87.029,86.999,31.46499893]
[1771294669979,11.98893332,87.028,87.0,0.47063845]
[1771294670274,11.98893332,87.028,87.0,11.96489132]
[1771294670681,0.49837856,87.028,87.0,11.96489132]
[1771294671784,0.49837856,87.019,86.999,19.5]
[1771294672084,0.49837856,87.019,86.993,11.49507626]
[1771294672274,0.49837856,87.019,86.982,19.99063845]
[1771294672275,8.07966401,87.01,86.983,0.47063845]
[1771294672580,0.49837856,87.033,86.985,0.47063845]
[1771294672766,8.07966401,87.06,87.021,0.47063845]
[1771294673073,0.49837856,87.079,87.041,0.47063845]
[1771294674780,0.49837856,87.079,87.043,0.47063845]
[1771294674959,0.49837856,87.088,87.051,0.47063845]
[1771294675682,11.4827701,87.087,87.051,0.47063845]
[1771294677185,8.07966401,87.08,87.052,11.95802529]
[1771294677977,0.49837856,87.086,87.053,0.47063845]
[1771294678659,0.49837856,87.086,87.052,11.48738684]
[1771294678660,0.49837856,87.095,87.06,8.07966401]
[1771294678858,19.56073183,87.1,87.061,0.47063845]
[1771294678859,15.9,87.099,87.061,0.47063845]
[1771294679263,11.48131989,87.098,87.063,0.47063845]
[1771294680987,28.69991922,87.109,87.062,11.4860674]
[1771294680988,8.07966401,87.11,87.071,0.47063845]
[1771294681188,8.57804257,87.1,87.071,0.47063845]
[1771294681364,8.57804257,87.1,87.062,40.2012359]
[1771294681365,8.57804257,87.1,87.073,0.47063845]
[1771294681765,8.07966401,87.1,87.073,0.47063845]
[1771294682580,11.48045082,87.105,87.075,0.47063845]
[1771294683872,8.07966401,87.11,87.075,0.47063845]
[1771294684091,15.92,87.109,87.081,0.47063845]
[1771294685685,8.07966401,87.1,87.076,11.48415666]
[1771294686174,15.92,87.106,87.076,11.95479511]
[1771294687283,16.41837856,87.106,87.076,11.95479511]
[1771294687682,8.07966401,87.1,87.076,11.95479511]
[1771294687874,27.89877429,87.106,87.076,11.95479511]
[1771294688276,16.41837856,87.106,87.076,11.95479511]
[1771294688476,16.41837856,87.106,87.077,0.47063845]
[1771294689301,0.49837856,87.105,87.077,0.47063845]
[1771294689482,0.49837856,87.105,87.076,11.48415666]
[1771294689794,0.49837856,87.099,87.072,11.48474459]
[1771294690293,0.49837856,87.089,87.05,8.07966401]
[1771294690490,0.49837856,87.089,87.049,0.47063845]
[1771294690491,0.49837856,87.079,87.051,11.48751881]
[1771294690675,0.49837856,87.077,87.051,11.48751881]
[1771294690990,15.92,87.078,87.052,0.47063845]
[1771294691597,15.92,87.078,87.04,0.47063845]
[1771294691598,8.07966401,87.07,87.04,0.47063845]
[1771294692192,8.07966401,87.11,87.061,0.47063845]
[1771294692391,8.07966401,87.11,87.071,0.47063845]
[1771294692893,15.92,87.109,87.071,0.47063845]
[1771294693299,8.57804257,87.1,87.073,0.47063845]
[1771294693596,16.41837856,87.099,87.067,11.48540056]
[1771294693782,0.49837856,87.098,87.067,11.48540056]
[1771294694091,0.49837856,87.089,87.055,0.47063845]
[1771294694679,8.07966401,87.07,87.051,11.48751881]
[1771294695189,16.387887,87.079,87.047,11.48804668]
[1771294695400,16.387887,87.079,87.048,0.4661217]
[1771294697779,16.387887,87.079,87.05,0.4661217]
[1771294697974,16.387887,87.079,87.045,28.72061142]
[1771294697975,8.07966401,87.06,87.031,0.4661217]
[1771294698180,15.92,87.069,87.031,0.4661217]
[1771294698885,8.07966401,87.08,87.031,0.4661217]
[1771294699082,15.92,87.079,87.041,0.4661217]
[1771294699282,8.07966401,87.07,87.041,0.4661217]
[1771294700604,8.07966401,87.07,87.042,0.4661217]
[1771294702187,8.07966401,87.07,87.0,5.36086188]
[1771294702188,0.467887,87.068,87.031,0.4661217]
[1771294703002,8.54755101,87.05,87.022,0.4661217]
[1771294703209,0.467887,87.049,87.022,0.4661217]
[1771294703904,8.07966401,87.05,87.022,0.4661217]
[1771294704102,8.07966401,87.07,87.031,0.4661217]
[1771294704305,11.95186203,87.078,87.033,0.4661217]
[1771294705807,8.07966401,87.09,87.041,0.4661217]
[1771294706021,15.94,87.089,87.041,0.4661217]
[1771294706187,0.5,87.129,87.081,40.19246448]
[1771294706390,0.5,87.129,87.1,8.07966401]
[1771294706785,0.5,87.129,87.09,8.07966401]
[1771294708410,0.5,87.129,87.091,11.48224271]
[1771294708614,0.5,87.127,87.091,11.48224271]
[1771294708788,0.5,87.127,87.067,0.14216157]
[1771294708789,0.5,87.127,87.071,11.48488015]
[1771294708990,0.5,87.127,87.072,19.42]
[1771294709390,0.5,87.127,87.08,8.07966401]
[1771294710491,0.5,87.125,87.081,11.48356128]
[1771294711412,0.5,87.125,87.076,11.48416208]
[1771294711607,0.5,87.119,87.072,19.42]
[1771294711792,0.5,87.109,87.063,19.42]
[1771294711987,0.5,87.109,87.07,8.07966401]
[1771294712501,0.5,87.107,87.071,11.48488015]
[1771294712705,15.92,87.126,87.071,11.48488015]
[1771294712706,0.5,87.119,87.09,8.07966401]
[1771294712908,0.5,87.119,87.1,8.07966401]
[1771294713112,0.5,87.119,87.09,27.49966401]
[1771294713612,0.5,87.119,87.09,19.42]
[1771294713997,0.5,87.119,87.071,30.90488015]
[1771294714711,0.5,87.117,87.08,8.07966401]
[1771294715916,0.5,87.117,87.081,11.48356128]
[1771294717300,0.5,87.115,87.081,11.48356128]
[1771294719109,0.5,87.113,87.072,11.48474825]
[1771294719416,0.5,87.113,87.08,8.07966401]
[1771294719908,0.5,87.113,87.072,11.48474825]
[1771294720603,0.5,87.113,87.08,8.06657054]
[1771294721208,0.5,87.113,87.081,11.48356128]
[1771294721724,11.47947469,87.112,87.081,11.48356128]
[1771294722028,0.5,87.111,87.081,11.48356128]
[1771294722210,0.5,87.111,87.09,8.06657054]
[1771294722606,0.5,87.111,87.081,11.48356128]
[1771294724835,0.5,87.12,87.09,8.06657054]
[1771294725232,0.5,87.12,87.081,11.48356128]
[1771294726025,0.5,87.12,87.09,8.06657054]
[1771294726616,0.5,87.132,87.1,8.06657054]
[1771294726816,0.5,87.132,87.1,27.50657054]
[1771294727539,0.5,87.132,87.101,11.48092444]
[1771294728441,0.5,87.13,87.101,11.48092444]
[1771294731930,0.5,87.157,87.12,8.06657054]
[1771294732118,0.5,87.157,87.121,19.44]
[1771294733136,0.5,87.157,87.102,19.44]
[1771294733736,0.5,87.149,87.102,19.44]
[1771294733929,0.5,87.147,87.103,11.48066082]
[1771294735639,0.5,87.147,87.102,19.44]
[1771294735825,0.5,87.145,87.103,11.48066082]
[1771294739441,0.5,87.143,87.103,11.48066082]
[1771294740323,0.5,87.143,87.102,19.44]
[1771294740541,0.5,87.139,87.102,19.44]
[1771294740745,0.5,87.139,87.09,11.48236432]
[1771294740959,0.5,87.137,87.09,11.48236432]
[1771294741240,0.5,87.137,87.084,19.44]
[1771294741442,0.5,87.135,87.083,11.48329477]
[1771294741838,0.5,87.129,87.078,11.4838593]
[1771294742349,0.5,87.129,87.08,3.22656513]
[1771294743229,0.5,87.127,87.081,11.48356128]
[1771294745352,0.5,87.125,87.077,30.9240546]
[1771294745552,0.5,87.119,87.073,11.48458921]
[1771294747749,0.5,87.117,87.063,11.48590862]
[1771294747960,3.22656513,87.11,87.063,11.48590862]
[1771294748136,0.5,87.109,87.063,11.48590862]
[1771294749547,0.5,87.107,87.063,11.48590862]
[1771294751358,0.5,87.107,87.06,3.22656513]
[1771294751656,0.5,87.104,87.05,22.64656513]
[1771294751846,0.5,87.104,87.06,3.22656513]
[1771294752150,40.18139027,87.105,87.06,3.22656513]
[1771294752151,0.5,87.102,87.06,3.22656513]
[1771294757247,0.5,87.1,87.051,11.48751881]
[1771294758463,0.5,87.098,87.051,11.48751881]
[1771294758663,0.5,87.098,87.06,3.22656513]
[1771294760083,40.18508099,87.097,87.051,11.48751881]
[1771294760248,0.5,87.096,87.06,3.22656513]
[1771294761461,0.5,87.094,87.06,3.22656513]
[1771294764472,0.5,87.092,87.051,11.48751881]
[1771294766466,0.5,87.09,87.051,11.48751881]
[1771294766652,0.5,87.09,87.05,19.42]
[1771294766854,0.5,87.089,87.03,3.22656513]
[1771294767068,0.5,87.088,87.03,3.22656513]
[1771294768159,0.5,87.079,87.029,11.49042273]
[1771294769065,0.5,87.077,87.03,3.22656513]
[1771294769876,0.5,87.069,87.022,11.49123406]
[1771294770665,0.5,87.069,87.022,11.49133927]
[1771294772873,0.5,87.067,87.022,11.49133927]
[1771294773078,0.5,87.067,87.02,3.22656513]
[1771294774472,40.19938896,87.066,87.02,14.71806831]
[1771294774788,0.5,87.065,87.02,14.71806831]
[1771294775284,0.5,87.059,87.016,11.49208793]
[1771294775480,3.22656513,87.06,87.01,3.22656513]
[1771294775481,0.5,87.057,87.01,3.22656513]
[1771294775675,40.19938896,87.066,86.995,11.4949135]
[1771294775676,0.5,87.039,86.995,11.4949135]
[1771294775867,0.5,87.038,86.995,11.4949135]
[1771294776063,0.5,87.036,86.99,3.42656513]
[1771294776265,0.5,87.029,86.99,0.2]
[1771294776682,0.5,87.027,86.99,0.2]
[1771294777973,0.5,87.019,86.99,0.2]
[1771294779085,0.5,87.017,86.99,0.2]
[1771294779592,0.5,87.009,86.99,0.2]
[1771294780392,0.46715097,87.007,86.98,0.2]
[1771294781189,0.46715097,87.005,86.98,0.2]
[1771294781389,0.46715097,87.025,86.981,0.2]
[1771294781583,0.46715097,87.048,87.001,0.2]
[1771294781790,0.46715097,87.048,87.011,0.2]
[1771294781981,0.46715097,87.047,87.011,0.2]
[1771294782192,0.46715097,87.039,86.991,0.2]
[1771294782487,0.46715097,87.029,86.991,0.2]
[1771294783083,0.46715097,87.027,86.993,0.2]
[1771294783977,11.49002022,87.033,87.001,0.2]
[1771294784178,11.49002022,87.033,86.992,40.23358469]
[1771294784179,0.48582922,87.058,87.011,0.2]
[1771294784774,0.48582922,87.049,87.011,0.2]
[1771294785072,0.48582922,87.037,87.002,0.2]
[1771294785493,0.48582922,87.037,86.997,11.49462114]
[1771294785897,3.23182881,87.03,86.997,11.49462114]
[1771294786093,0.48582922,87.019,86.976,11.49730093]
[1771294786287,16.52582922,87.019,86.976,11.69730093]
[1771294786589,0.48582922,87.018,86.979,11.4969251]
[1771294786796,0.48582922,87.018,86.98,0.4]
[1771294786985,0.48582922,87.018,86.982,0.2]
[1771294787186,11.4920073,87.017,86.984,0.2]
[1771294787791,0.48582922,87.035,87.001,0.2]
[1771294788680,0.48582922,87.029,86.994,0.2]
[1771294789281,0.48570651,87.027,86.995,11.4949135]
[1771294790090,0.48570651,87.027,86.996,0.2]
[1771294790281,28.71985616,87.048,86.996,0.2]
[1771294790282,0.48570651,87.034,86.996,0.2]
[1771294790485,29.20556267,87.048,87.011,0.2]
[1771294790700,3.23182881,87.05,87.011,0.2]
[1771294790701,0.48570651,87.046,87.011,0.2]
[1771294791297,0.48570651,87.044,87.012,11.49266767]
[1771294791703,0.48570651,87.044,87.011,0.2]
[1771294792378,0.48570651,87.044,87.004,0.2]
[1771294792575,0.48570651,87.044,86.99,19.3]
[1771294792576,0.48570651,87.029,86.988,11.6958385]
[1771294792778,0.48570651,87.029,86.989,0.2]
[1771294793298,0.48570651,87.027,86.992,11.49530991]
[1771294793486,0.48570651,87.027,86.992,11.69530991]
[1771294793682,0.48570651,87.027,86.992,11.49530991]
[1771294793888,0.48570651,87.027,86.993,0.2]
[1771294794703,0.48570651,87.019,86.986,0.2]
[1771294794888,0.48570651,87.019,86.983,0.2]
[1771294795094,0.48570651,87.027,86.991,0.2]
[1771294795591,11.49081883,87.026,86.993,0.2]
[1771294795901,0.48570651,87.025,86.993,0.2]
[1771294796986,0.48570651,87.023,86.993,0.2]
[1771294797190,0.48570651,87.023,86.987,11.49595599]
[1771294797389,0.48570651,87.023,86.987,11.69595599]
[1771294797702,0.48570651,87.023,86.991,0.2]
[1771294798005,11.48995898,87.033,87.001,0.2]
[1771294799004,11.48995898,87.033,86.985,19.3]
[1771294799005,0.48570651,87.052,87.012,11.49266767]
[1771294799312,0.48570651,87.052,87.013,0.2]
[1771294799488,0.48570651,87.048,87.013,0.2]
[1771294799690,0.48570651,87.039,87.003,11.49385653]
[1771294800384,0.48570651,87.039,86.979,4.61729252]
[1771294800385,0.48570651,87.019,86.981,11.69676366]
[1771294800705,3.23182881,87.01,86.98,0.2]
[1771294800900,0.48570651,87.019,86.981,0.2]
[1771294801081,4.61729252,87.046,86.982,0.2]
[1771294801082,11.97758175,87.018,86.982,0.2]
[1771294801287,0.48570651,87.017,86.982,0.2]
[1771294801485,0.48570651,87.024,86.982,0.2]
[1771294801687,11.49086063,87.026,86.991,0.2]